bitfinex-derivatives/quotes_ETHF0:USTF0_20250602
["timestamp","ask_amount","ask_price","bid_price","bid_amount"]
[1748904144466,8.43222,2578.0,2577.9,0.00581136]
[1748904146171,10.75129311,2578.0,2577.9,0.00581136]
[1748904146363,8.43222,2578.0,2577.9,0.00581136]
[1748904146858,8.43222,2578.0,2577.1,2.8848]
[1748904146859,0.7756,2577.5,2577.4,0.77559]
[1748904147062,3.9834,2577.5,2577.4,0.77559]
[1748904147757,0.77563,2577.4,2577.3,0.77561]
[1748904147961,0.77563,2577.3,2577.2,0.78146136]
[1748904148565,0.77563,2577.3,2577.2,0.00581136]
[1748904148761,0.77563,2577.3,2577.2,0.78147136]
[1748904149162,4.679,2577.5,2577.2,0.00581136]
[1748904149363,5.45459,2577.5,2577.4,0.7756]
[1748904149558,3.2078,2577.5,2577.4,0.7756]
[1748904150367,4.45581136,2577.7,2577.6,0.77554]
[1748904151371,4.45581136,2577.7,2577.6,2.28034]
[1748904152070,5.23132136,2577.7,2577.6,2.28034]
[1748904152368,0.77563,2577.4,2577.3,0.77561]
[1748904152573,0.77563,2577.3,2577.2,0.78144136]
[1748904152781,5.22563,2577.3,2577.2,0.00581136]
[1748904153267,8.43343,2577.3,2577.2,0.00581136]
[1748904154272,8.43343,2577.3,2577.2,0.78147136]
[1748904154863,9.96903,2577.3,2577.2,0.78147136]
[1748904155765,4.45,2577.3,2577.2,0.78147136]
[1748904156272,4.45,2577.3,2576.4,0.77589]
[1748904156273,1.93917,2577.2,2576.4,0.77589]
[1748904156474,0.77574,2577.0,2576.6,1.93961]
[1748904156764,0.77571,2577.1,2577.0,0.77572]
[1748904156967,8.18371308,2577.4,2577.3,0.77563]
[1748904157172,5.8646,2577.4,2577.3,0.77563]
[1748904157464,8.0695,2577.4,2577.3,0.77563]
[1748904157671,4.45,2577.4,2577.3,0.77563]
[1748904157866,4.45,2577.4,2577.3,2.22923]
[1748904159268,0.77563,2577.3,2577.2,0.07069789]
[1748904159469,0.77566,2577.2,2577.1,0.78148136]
[1748904160666,2.30125,2577.3,2577.2,0.77566]
[1748904161673,2.30125,2577.3,2577.2,0.84635789]
[1748904162274,2.30125,2577.3,2577.2,0.07069789]
[1748904163573,2.30125,2577.3,2577.2,0.84635789]
[1748904164264,2.30125,2577.3,2577.2,0.07069789]
[1748904165174,2.30125,2577.3,2577.2,0.84635789]
[1748904167078,1.5256,2577.3,2577.2,0.84635789]
[1748904167577,7.3386,2577.4,2577.3,0.77563]
[1748904168272,8.8157,2577.4,2577.3,0.77563]
[1748904168788,9.59132,2577.4,2577.3,0.77563]
[1748904169478,8.10302,2577.4,2577.3,0.77563]
[1748904170680,8.10302,2577.4,2577.3,0.84632789]
[1748904171372,5.22562,2577.4,2577.3,0.84632789]
[1748904172774,6.68632,2577.4,2577.3,0.07069789]
[1748904173071,6.68632,2577.4,2577.3,0.84632789]
[1748904173681,0.77566,2577.2,2577.1,0.00581136]
[1748904173872,3.98346,2577.2,2577.1,0.00581136]
[1748904174375,6.30257308,2577.2,2577.1,0.00581136]
[1748904174876,3.98346,2577.2,2577.1,0.00581136]
[1748904175467,5.45196,2577.2,2577.1,0.00581136]
[1748904175675,6.97886,2577.2,2577.1,0.00581136]
[1748904180479,9.3011204,2577.2,2577.1,0.00581136]
[1748904180683,6.97886,2577.2,2577.1,0.00581136]
[1748904180982,6.97886,2577.2,2577.1,0.78150136]
[1748904180983,6.99857981,2577.2,2577.1,0.78150136]
[1748904181179,3.2078,2577.2,2577.1,0.78150136]
[1748904181682,3.98346,2577.2,2577.1,0.78150136]
[1748904181882,3.2078,2577.2,2577.1,0.78150136]
[1748904182782,3.2078,2577.2,2577.1,2.26190136]
[1748904182783,3.98346,2577.2,2577.1,2.26190136]
[1748904182988,4.45,2577.4,2577.3,0.77563]
[1748904183379,5.2256,2577.4,2577.3,0.77563]
[1748904184780,4.45,2577.4,2577.3,0.77563]
[1748904184982,4.45,2577.4,2577.3,0.84632789]
[1748904185480,3.2078,2577.5,2577.4,0.7756]
[1748904185785,3.2078,2577.5,2577.4,2.3309]
[1748904186983,3.98338,2577.5,2577.4,2.3309]
[1748904187584,0.77566,2577.3,2577.2,0.77563]
[1748904187879,0.77566,2577.3,2577.2,2.35343]
[1748904188284,5.14676,2577.5,2577.3,0.7756]
[1748904188285,0.77563,2577.4,2577.3,0.7756]
[1748904189589,0.77563,2577.3,2577.2,2.35344]
[1748904191885,0.77566,2577.2,2577.1,0.00581136]
[1748904192089,9.92876,2577.2,2577.1,0.00581136]
[1748904193086,12.25103981,2577.2,2577.1,0.00581136]
[1748904194187,9.92876,2577.2,2577.1,0.00581136]
[1748904195786,10.23768906,2577.2,2577.1,0.00581136]
[1748904196189,0.77581,2576.7,2576.6,1.5998]
[1748904196991,2.38471,2576.7,2576.6,1.5998]
[1748904198089,2.38471,2576.7,2576.4,0.00581136]
[1748904198090,0.77587,2576.5,2576.4,0.00581136]
[1748904198285,6.30602593,2576.5,2576.4,0.00581136]
[1748904200092,6.30602593,2576.5,2575.5,4.18095859]
[1748904200093,29.34115593,2576.5,2575.4,4.35418998]
[1748904200300,0.77595,2576.3,2576.2,0.77596]
[1748904201499,0.77599,2576.1,2576.0,4.02022287]
[1748904201997,0.77598,2576.2,2576.1,0.77596]
[1748904202596,2.04673,2576.3,2576.2,0.77596]
[1748904203396,0.77591,2576.4,2576.3,0.77593]
[1748904203700,0.77595,2576.4,2576.3,0.77591]
[1748904204198,0.77587,2576.5,2576.4,0.07069789]
[1748904205194,0.77584,2576.6,2576.5,0.77587]
[1748904205399,0.77584,2576.6,2576.5,3.94137]
[1748904205602,0.78164287,2576.7,2576.6,0.77584]
[1748904206093,0.00582287,2576.7,2576.6,0.77584]
[1748904206796,0.00582287,2576.7,2576.6,3.98364]
[1748904207488,3.2078,2577.3,2577.2,0.77566]
[1748904208200,0.77562,2577.4,2577.3,0.77559]
[1748904208400,0.77559,2577.5,2577.4,0.77557]
[1748904209597,5.20255,2577.6,2577.5,0.77557]
[1748904210193,4.427,2577.6,2577.5,0.77557]
[1748904210592,5.20254,2577.6,2577.5,0.77557]
[1748904211687,0.7756,2577.4,2577.3,0.00582287]
[1748904211894,0.7756,2577.4,2577.3,0.78143287]
[1748904212096,5.20255,2577.6,2577.5,0.77557]
[1748904212297,0.7756,2577.5,2577.4,0.77558]
[1748904213402,5.20255,2577.6,2577.5,0.77557]
[1748904218604,5.20255,2577.6,2577.5,0.84626789]
[1748904219509,0.00582287,2577.7,2577.6,0.77554]
[1748904219710,0.00582287,2577.7,2577.6,3.85934]
[1748904220901,0.00582287,2577.7,2577.6,8.85934]
[1748904222509,0.00582287,2577.7,2577.6,3.85934]
[1748904222699,0.00582287,2577.7,2577.6,8.85934]
[1748904223409,0.00582287,2577.7,2577.6,3.85934]
[1748904236611,2.87e-06,2577.7,2577.6,3.85934]
[1748904240723,2.87e-06,2577.7,2577.6,8.26634]
[1748904241824,2.87e-06,2577.7,2577.6,3.85934]
[1748904242028,2.87e-06,2577.7,2577.6,8.26634]
[1748904242417,2.87e-06,2577.7,2577.6,0.77554]
[1748904242828,0.77554,2577.6,2577.5,0.77554]
[1748904243028,5.38104,2577.6,2577.5,0.77554]
[1748904243328,4.6055,2577.6,2577.5,0.77554]
[1748904244137,3.1224,2577.6,2577.5,0.77554]
[1748904244838,2.87e-06,2577.7,2577.6,0.77554]
[1748904245136,2.87e-06,2577.7,2577.6,2.28584]
[1748904248329,2.87e-06,2577.7,2577.6,0.77554]
[1748904248838,1.48010287,2577.7,2577.6,0.77554]
[1748904250234,2.25561287,2577.7,2577.6,0.77554]
[1748904252438,2.25561287,2577.7,2577.4,1.939]
[1748904252439,0.7756,2577.5,2577.4,0.77557]
[1748904253140,2.2914,2577.5,2577.4,0.77557]
[1748904253737,1.5158,2577.5,2577.4,0.77557]
[1748904255543,1.5393,2577.6,2577.5,0.77557]
[1748904255733,1.5393,2577.6,2577.5,3.98337]
[1748904255932,3.0768,2577.6,2577.5,3.98337]
[1748904257033,1.5393,2577.6,2577.5,3.98337]
[1748904257435,1.5393,2577.6,2577.5,5.51317]
[1748904260835,1.5393,2577.6,2577.5,0.77557]
[1748904260836,2.31484,2577.6,2577.5,0.77557]
[1748904261030,0.7756,2577.4,2577.3,0.78141287]
[1748904261235,0.7756,2577.4,2577.3,0.78145287]
[1748904261833,2.2714,2577.4,2577.3,0.00582287]
[1748904263034,2.2714,2577.4,2577.3,0.78145287]
[1748904264834,2.2714,2577.4,2577.3,0.00582287]
[1748904265442,0.77575,2577.0,2576.9,0.77572]
[1748904265644,3.43481,2577.4,2576.7,1.93951]
[1748904265849,0.77568,2577.2,2577.1,0.77565]
[1748904266144,0.77565,2577.3,2577.2,0.77563]
[1748904266640,1.4958,2577.4,2577.3,0.77563]
[1748904267045,1.55,2577.5,2577.4,0.7756]
[1748904267545,2.32557,2577.5,2577.4,0.7756]
[1748904267742,1.55,2577.5,2577.4,0.7756]
[1748904267946,3.119,2577.5,2577.4,0.7756]
[1748904268637,3.89457,2577.5,2577.4,0.7756]
[1748904269943,1.5393,2577.6,2577.5,0.77557]
[1748904270335,2.87e-06,2577.7,2577.6,0.77554]
[1748904270643,0.77551287,2577.7,2577.6,0.77554]
[1748904271244,2.87e-06,2577.7,2577.6,0.77554]
[1748904274545,2.87e-06,2577.7,2577.6,2.25724]
[1748904275140,2.87e-06,2577.7,2577.6,5.46504]
[1748904278747,2.87e-06,2577.7,2577.6,10.46504]
[1748904281451,2.87e-06,2577.7,2577.6,5.46504]
[1748904286843,2.87e-06,2577.7,2577.6,2.25724]
[1748904287455,2.87e-06,2577.7,2577.6,5.46504]
[1748904297151,2.87e-06,2577.7,2577.6,3.98334]
[1748904302262,0.71320287,2578.0,2577.9,0.77545]
[1748904302463,1.4855,2578.3,2578.2,0.77536]
[1748904302764,4.388,2578.5,2578.4,0.7753]
[1748904303966,0.77533,2578.4,2578.3,0.77531]
[1748904304159,2.30083,2578.4,2578.3,0.77531]
[1748904304655,1.5255,2578.4,2578.3,0.77531]
[1748904304860,4.388,2578.5,2578.4,0.7753]
[1748904305260,2.31964789,2578.6,2578.5,0.77527]
[1748904305666,1.4605,2578.6,2578.5,0.77527]
[1748904306166,1.56252287,2578.7,2578.6,0.77524]
[1748904306661,4.51602287,2578.7,2578.6,0.77524]
[1748904307558,0.00582287,2578.7,2578.6,0.77524]
[1748904307762,2.87e-06,2578.7,2578.6,2.24234]
[1748904319280,2.87e-06,2578.7,2578.6,0.77524]
[1748904320171,2.87e-06,2578.7,2578.6,2.38284]
[1748904321272,2.87e-06,2578.7,2578.6,2.45353789]
[1748904325365,2.87e-06,2578.7,2578.6,2.38284]
[1748904325773,2.87e-06,2578.7,2578.6,5.38284]
[1748904326277,2.87e-06,2578.7,2578.6,5.45353789]
[1748904326573,2.87e-06,2578.7,2578.6,10.45353789]
[1748904326871,1.5756,2579.5,2579.4,0.775]
[1748904327070,1.5756,2579.5,2579.4,3.9828]
[1748904327270,1.5145,2579.7,2579.6,0.77494]
[1748904327871,3.17062287,2579.9,2579.8,0.77488]
[1748904328070,3.17062287,2579.9,2579.8,3.98268]
[1748904328876,4.68512287,2579.9,2579.8,3.98268]
[1748904329682,4.68512287,2579.9,2579.8,0.77488]
[1748904331780,5.45997287,2579.9,2579.8,0.77488]
[1748904331979,4.68512287,2579.9,2579.8,0.77488]
[1748904332578,5.45997287,2579.9,2579.8,0.77488]
[1748904332984,0.77491,2579.7,2579.6,0.00582287]
[1748904333278,0.77497,2579.5,2579.4,0.77499]
[1748904333683,5.77497,2579.5,2579.4,0.77499]
[1748904333874,1.464,2579.5,2579.4,0.77499]
[1748904334181,2.9573,2579.5,2579.4,0.77499]
[1748904335384,2.9573,2579.5,2579.4,0.84568789]
[1748904338584,2.9573,2579.5,2579.4,0.77499]
[1748904339375,2.9573,2579.5,2579.4,0.84568789]
[1748904340379,2.9573,2579.5,2579.4,0.77499]
[1748904345684,2.9573,2579.5,2579.4,0.84568789]
[1748904346188,2.31964789,2579.8,2579.7,0.77491]
[1748904346391,3.0381,2579.8,2579.7,0.77491]
[1748904347384,3.0381,2579.8,2579.7,3.77491]
[1748904347989,3.81298,2579.8,2579.7,3.77491]
[1748904348193,8.81298,2579.8,2579.7,3.0]
[1748904348790,8.0381,2579.8,2579.7,3.77491]
[1748904349389,3.0381,2579.8,2579.7,3.77491]
[1748904350594,3.0381,2579.8,2579.7,3.84560789]
[1748904351590,3.0381,2579.8,2579.7,3.77491]
[1748904351788,5.35774789,2579.8,2579.7,3.77491]
[1748904352496,6.13262789,2579.8,2579.7,3.77491]
[1748904353096,5.35774789,2579.8,2579.7,3.77491]
[1748904354287,3.84524789,2579.8,2579.7,3.77491]
[1748904354690,3.84524789,2579.8,2579.7,3.84560789]
[1748904355497,3.90107076,2579.9,2579.8,0.77488]
[1748904355692,3.90107076,2579.9,2579.8,2.37188]
[1748904357095,2.32547076,2579.9,2579.8,2.37188]
[1748904357802,3.10032076,2579.9,2579.8,2.37188]
[1748904359299,0.77488,2579.8,2579.7,4.4921]
[1748904359503,5.36744789,2579.8,2579.7,3.0]
[1748904359794,3.82268,2579.8,2579.7,3.07069789]
[1748904360002,4.66422789,2579.8,2579.7,3.84560789]
[1748904360190,3.09452789,2579.8,2579.7,3.84560789]
[1748904360499,0.77488,2579.8,2579.7,3.84560789]
[1748904360704,3.09452789,2579.8,2579.7,3.84560789]
[1748904361000,3.09452789,2579.8,2579.7,3.77491]
[1748904361001,0.77488,2579.8,2579.7,3.77491]
[1748904361601,6.14774076,2579.9,2579.8,0.77488]
[1748904361905,4.66704966,2579.9,2579.8,0.77488]
[1748904362491,2.32888012,2579.9,2579.8,0.77488]
[1748904363092,2.32888012,2579.9,2579.8,2.32168]
[1748904363993,0.00582287,2579.9,2579.8,2.32168]
[1748904364412,0.00582287,2579.9,2579.8,5.52948]
[1748904367896,0.00582287,2579.9,2579.8,5.60017789]
[1748904368703,2.32305725,2580.4,2580.0,1.93702]
[1748904368904,2.32305725,2580.4,2580.3,0.77473]
[1748904369101,1.6037,2580.5,2580.4,0.7747]
[1748904370204,2.32305725,2580.6,2580.5,0.77467]
[1748904370803,3.09769725,2580.6,2580.5,0.77467]
[1748904372099,0.77464,2580.6,2580.5,0.77467]
[1748904372496,6.64688012,2580.7,2580.6,0.77464]
[1748904372701,7.42149012,2580.7,2580.6,0.77464]
[1748904372902,2.32888012,2580.7,2580.6,0.77464]
[1748904373102,0.00582287,2580.7,2580.6,0.77464]
[1748904373603,0.00582287,2580.7,2580.6,2.28834]
[1748904374503,0.78043287,2580.7,2580.6,2.28834]
[1748904376406,0.00582287,2580.7,2580.6,2.28834]
[1748904376603,0.78043287,2580.7,2580.6,2.28834]
[1748904378209,0.78043287,2580.7,2580.6,0.77464]
[1748904378407,0.77467,2580.6,2580.5,0.77465]
[1748904378618,1.93679,2580.4,2579.8,6.1733]
[1748904378806,1.93679,2580.4,2580.0,0.77479]
[1748904378807,0.77482,2580.1,2580.0,0.77479]
[1748904379007,0.77485,2580.0,2579.9,0.77482]
[1748904379312,0.77485,2579.9,2579.8,5.46206]
[1748904379502,3.0608,2580.0,2579.9,0.77485]
[1748904379707,1.5941,2580.0,2579.9,0.77485]
[1748904379909,1.5941,2580.0,2579.9,2.26095]
[1748904380309,6.2845,2580.3,2580.2,0.77476]
[1748904380310,3.0767,2580.3,2580.2,0.77476]
[1748904380606,5.906,2580.3,2580.2,0.77476]
[1748904380810,1.61,2580.3,2580.2,0.77476]
[1748904381014,2.36877,2580.5,2580.4,0.7747]
[1748904381406,3.95077,2580.5,2580.4,0.7747]
[1748904381917,0.77472,2580.4,2580.3,0.77473]
[1748904382514,3.95079,2580.5,2580.4,0.7747]
[1748904383112,1.5941,2580.5,2580.4,3.9825]
[1748904383317,1.5941,2580.5,2580.4,0.7747]
[1748904383709,2.36877,2580.5,2580.4,0.7747]
[1748904384018,3.95077,2580.5,2580.4,0.7747]
[1748904384713,3.1761,2580.5,2580.4,0.7747]
[1748904385115,3.95077,2580.5,2580.4,0.7747]
[1748904386916,3.1761,2580.5,2580.4,0.7747]
[1748904387920,3.95077,2580.5,2580.4,0.7747]
[1748904388221,0.7747,2580.4,2580.3,2.28711]
[1748904388518,0.77476,2580.3,2580.2,0.77474]
[1748904388717,2.28206,2580.3,2580.2,0.77474]
[1748904389322,1.5073,2580.3,2580.2,0.77474]
[1748904389714,2.36879,2580.5,2580.4,0.7747]
[1748904390020,3.87609,2580.5,2580.4,0.7747]
[1748904390816,3.1014,2580.5,2580.4,0.7747]
[1748904391016,1.5941,2580.5,2580.4,0.7747]
[1748904391417,3.2078,2580.6,2580.5,0.77467]
[1748904391615,0.77473,2580.4,2580.3,0.77469]
[1748904391916,0.77472,2580.4,2580.3,0.7747]
[1748904392316,0.77473,2580.3,2580.2,3.98254]
[1748904392615,0.77479,2580.1,2580.0,0.7748]
[1748904393011,0.77482,2580.0,2579.9,3.2078]
[1748904393313,8.14302,2580.0,2579.9,3.2078]
[1748904393919,8.14302,2580.0,2579.9,3.98265]
[1748904394720,7.3682,2580.0,2579.9,3.98265]
[1748904395023,8.14302,2580.0,2579.9,3.98265]
[1748904395316,7.3682,2580.0,2579.9,3.98265]
[1748904395522,4.296,2580.0,2579.9,3.98265]
[1748904396025,4.296,2580.0,2579.9,5.53185]
[1748904396621,4.36669789,2580.0,2579.9,5.53185]
[1748904398723,4.36669789,2580.0,2579.9,3.98265]
[1748904398915,5.14151789,2580.0,2579.9,3.98265]
[1748904399117,4.36669789,2580.0,2579.9,3.98265]
[1748904399521,5.14151789,2580.0,2579.9,3.98265]
[1748904400616,5.14151789,2580.0,2579.9,3.2078]
[1748904401420,6.63531789,2580.0,2579.9,3.2078]
[1748904401621,6.63531789,2580.0,2579.9,3.98265]
[1748904402826,6.63531789,2580.0,2579.9,3.2078]
[1748904403629,6.63531789,2580.0,2579.9,3.98265]
[1748904404623,6.56462,2580.0,2579.9,3.98265]
[1748904406631,5.07082,2580.0,2579.9,3.98265]
[1748904407224,5.07082,2580.0,2579.9,5.58165]
[1748904407928,5.07082,2580.0,2579.9,4.8068]
[1748904408229,0.77488,2579.8,2579.7,0.77489]
[1748904409420,0.77494,2579.6,2579.5,2.37394]
[1748904409726,0.77494,2579.6,2579.5,5.58174]
[1748904410029,3.86923,2579.7,2579.6,0.77494]
[1748904410723,3.0943,2579.7,2579.6,0.77494]
[1748904410927,6.59905725,2580.0,2579.9,0.77485]
[1748904411128,4.276,2580.0,2579.9,0.77485]
[1748904411431,5.05082,2580.0,2579.9,0.77485]
[1748904411625,5.05082,2580.0,2579.9,2.30095]
[1748904411833,5.05082,2580.0,2579.9,3.0569]
[1748904412023,5.05082,2580.0,2579.6,0.7749]
[1748904412024,0.77494,2579.7,2579.6,0.7749]
[1748904412330,0.77494,2579.6,2579.5,3.98276]
[1748904412524,2.28314,2579.6,2579.5,3.98276]
[1748904412727,6.55914,2579.6,2579.5,3.2078]
[1748904413529,6.55914,2579.6,2579.5,3.98277]
[1748904420535,6.55914,2579.6,2579.5,3.2078]
[1748904421227,6.55914,2579.6,2579.5,3.98277]
[1748904425832,6.62983789,2579.6,2579.5,3.98277]
[1748904426029,10.85489789,2579.6,2579.2,1.94347287]
[1748904426237,1.93783,2579.0,2578.4,3.84211008]
[1748904426535,0.77527,2578.5,2578.4,3.84211008]
[1748904426736,0.7753,2578.4,2578.3,1.454]
[1748904426931,3.9831,2578.4,2578.3,2.22933]
[1748904427131,3.9831,2578.4,2578.3,1.454]
[1748904427533,3.2078,2578.4,2578.3,2.22933]
[1748904428233,0.77529,2578.5,2578.4,0.7753]
[1748904428436,5.05229,2578.5,2578.4,2.3854]
[1748904428940,5.05229,2578.5,2578.4,1.6101]
[1748904429143,5.05229,2578.5,2578.4,2.3854]
[1748904429345,5.05229,2578.5,2578.4,1.6101]
[1748904429743,5.05229,2578.5,2578.4,3.1885]
[1748904430046,0.77529,2578.5,2578.4,3.1885]
[1748904430245,5.05229,2578.5,2578.4,3.9638]
[1748904430740,5.05229,2578.5,2578.4,3.1885]
[1748904430948,0.77529,2578.5,2578.4,3.1885]
[1748904431147,5.05229,2578.5,2578.4,3.1885]
[1748904431836,5.05229,2578.5,2578.4,1.5784]
[1748904432036,0.77536,2578.2,2578.1,2.24169287]
[1748904432236,0.77536,2578.2,2578.1,1.46632287]
[1748904432446,0.77536,2578.2,2578.1,0.00582287]
[1748904433238,0.77536,2578.2,2578.1,0.78121287]
[1748904433438,0.77536,2578.2,2578.1,2.39091287]
[1748904433740,0.77536,2578.2,2578.1,1.61552287]
[1748904434746,0.77536,2578.2,2578.1,2.39091287]
[1748904436242,0.77536,2578.2,2578.1,1.61552287]
[1748904437042,0.77536,2578.2,2578.1,0.00582287]
[1748904437346,0.77545,2577.9,2577.8,0.00387927]
[1748904437646,8.24125,2577.9,2577.8,0.00387927]
[1748904437847,0.77569,2577.2,2577.1,0.77566]
[1748904438239,0.77569,2577.2,2577.0,3.048]
[1748904438240,0.77569,2577.1,2577.0,3.048]
[1748904438439,3.98349,2577.1,2577.0,3.048]
[1748904439651,0.77568,2577.2,2577.1,0.77569]
[1748904440548,0.77568,2577.2,2577.0,3.048]
[1748904440549,0.77569,2577.1,2577.0,3.8237]
[1748904440948,0.77569,2577.1,2577.0,3.048]
[1748904441150,3.98349,2577.1,2577.0,1.5023]
[1748904441543,0.77575,2576.9,2576.8,2.25010287]
[1748904441847,0.77575,2576.9,2576.8,1.47432287]
[1748904442047,0.77575,2576.9,2576.8,0.00582287]
[1748904442247,5.03475,2576.9,2576.8,0.00582287]
[1748904443442,6.62285,2576.9,2576.8,0.00582287]
[1748904443844,0.77593,2576.4,2576.3,0.77591]
[1748904444138,7.4668,2576.5,2576.4,0.7759]
[1748904444351,7.4668,2576.5,2576.4,2.3766]
[1748904445154,4.259,2576.5,2576.4,2.3766]
[1748904445448,5.03487,2576.5,2576.4,2.3766]
[1748904445839,4.2529,2576.6,2576.5,0.77587]
[1748904446151,4.25964,2576.6,2576.5,0.77587]
[1748904448648,3.4838,2576.6,2576.5,0.77587]
[1748904449452,4.25964,2576.6,2576.5,0.77587]
[1748904449851,4.25964,2576.6,2576.4,1.6007]
[1748904449852,3.4838,2576.6,2576.2,1.60282287]
[1748904450051,3.98373,2576.3,2576.2,0.00582287]
[1748904450951,7.4678,2576.3,2576.2,0.78178287]
[1748904451155,7.4678,2576.7,2576.6,0.77584]
[1748904451355,3.2078,2576.7,2576.6,0.77584]
[1748904452052,39.116,2576.9,2576.8,0.77578]
[1748904452750,39.89175,2576.9,2576.8,0.77578]
[1748904453148,39.116,2576.9,2576.8,0.77578]
[1748904455053,4.261,2577.0,2576.9,0.77575]
[1748904455254,0.00582287,2577.3,2577.2,0.77566]
[1748904456547,4.26682287,2577.3,2577.1,1.5952]
[1748904456753,3.2078,2577.2,2577.1,2.37087]
[1748904458961,4.26682287,2577.3,2577.2,0.77566]
[1748904459165,7.47462287,2577.3,2577.2,0.77566]
[1748904462065,8.25025287,2577.3,2577.2,0.77566]
[1748904462375,0.77573,2577.1,2577.0,0.7757]
[1748904462554,7.47462287,2577.3,2576.7,1.5479]
[1748904462555,5.09378,2577.2,2576.7,1.5479]
[1748904462754,0.77577,2576.9,2576.8,0.77576]
[1748904463463,5.03677,2576.9,2576.8,0.77576]
[1748904463765,5.03677,2576.9,2576.8,0.77578]
[1748904464565,0.77581,2576.8,2576.7,0.77579]
[1748904465356,1.6174,2576.8,2576.7,0.77581]
[1748904465762,1.6174,2576.8,2576.7,2.37691]
[1748904466160,3.98354,2577.0,2576.9,0.77575]
[1748904466662,0.7758,2576.9,2576.8,0.77576]
[1748904466858,2.3814,2576.9,2576.8,0.77576]
[1748904467062,3.2078,2577.0,2576.9,0.77575]
[1748904467063,3.98353,2577.0,2576.9,0.77575]
[1748904467263,7.4518,2577.0,2576.9,0.77575]
[1748904467463,3.2078,2577.0,2576.9,0.77575]
[1748904467764,2.3125,2577.1,2577.0,0.77572]
[1748904467966,6.5565,2577.1,2577.0,0.77572]
[1748904468164,3.9181,2577.1,2577.0,0.77572]
[1748904468360,8.1621,2577.1,2577.0,0.77572]
[1748904469567,11.3699,2577.1,2577.0,0.77572]
[1748904469869,0.77575,2577.0,2576.9,0.77573]
[1748904470564,5.01975,2577.0,2576.9,0.77573]
[1748904470964,5.01972,2577.0,2576.9,0.77573]
[1748904471364,0.77572,2577.0,2576.9,0.77573]
[1748904471668,5.01972,2577.0,2576.9,0.77573]
[1748904471961,0.77575,2576.9,2576.8,3.80856]
[1748904472767,0.77575,2576.9,2576.8,1.4816]
[1748904473266,0.77575,2576.9,2576.8,2.25738]
[1748904477967,5.01975,2576.9,2576.8,2.25738]
[1748904479569,3.98353,2577.0,2576.9,0.77575]
[1748904479775,8.22753,2577.0,2576.9,2.24715]
[1748904480275,3.2078,2577.0,2576.9,2.24715]
[1748904480469,5.53668012,2577.3,2577.2,0.77566]
[1748904480770,0.77569,2577.1,2577.0,1.4714]
[1748904480975,0.77575,2576.9,2576.8,2.25735]
[1748904482072,3.98354,2577.0,2576.9,0.77575]
[1748904482377,3.98354,2577.0,2576.9,2.36145]
[1748904482678,6.31232012,2577.3,2577.2,0.77566]
[1748904482877,8.23326287,2577.3,2577.2,0.77566]
[1748904483376,0.77566,2577.2,2577.1,2.36137]
[1748904485267,3.21362287,2577.3,2577.2,0.77566]
[1748904485471,3.98925287,2577.3,2577.2,2.35836]
[1748904486374,3.98925287,2577.3,2577.2,1.5827]
[1748904486876,3.98925287,2577.3,2577.2,2.35836]
[1748904488978,3.98925287,2577.3,2577.2,1.5827]
[1748904489181,3.98925287,2577.3,2577.1,0.77566]
[1748904489182,0.77569,2577.2,2577.1,0.77566]
[1748904489378,0.77569,2577.2,2577.1,2.29796]
[1748904490179,8.23327287,2577.3,2577.2,0.77566]
[1748904490379,8.23327287,2577.3,2577.2,2.29796]
[1748904490680,8.23327287,2577.3,2577.2,1.5223]
[1748904491175,8.23327287,2577.3,2577.2,2.29796]
[1748904492381,8.23327287,2577.3,2577.2,1.5223]
[1748904492579,8.23327287,2577.3,2577.2,2.29796]
[1748904493079,8.23327287,2577.3,2577.2,0.77566]
[1748904493283,8.23327287,2577.3,2576.7,3.2078]
[1748904493284,1.93923,2577.1,2576.7,3.2078]
[1748904493581,0.77584,2576.7,2576.6,0.77579]
[1748904494381,0.77584,2576.6,2576.5,1.4669]
[1748904495182,0.77584,2576.6,2576.5,2.24277]
[1748904496080,0.77584,2576.6,2576.5,0.77587]
[1748904496384,0.77592,2576.4,2576.3,0.7759]
[1748904496576,0.77592,2576.4,2576.3,2.2305]
[1748904496976,4.228,2576.5,2576.4,0.7759]
[1748904499686,0.7759,2576.4,2576.3,2.23051]
[1748904499885,0.7759,2576.4,2576.2,0.00582287]
[1748904499886,0.77593,2576.3,2576.2,0.00582287]
[1748904500082,2.36043,2576.3,2576.2,0.00582287]
[1748904500285,4.68348725,2576.3,2576.2,0.00582287]
[1748904500681,2.36043,2576.3,2576.2,0.00582287]
[1748904501087,0.77608,2575.9,2575.6,1.592]
[1748904501282,8.21188,2575.9,2575.8,0.77607]
[1748904502084,3.2078,2575.9,2575.8,0.77607]
[1748904502285,0.00582287,2576.1,2576.0,0.77602]
[1748904502479,7.4358,2576.5,2576.4,0.7759]
[1748904502480,2.32139774,2576.5,2576.4,0.7759]
[1748904502695,3.2078,2576.8,2576.4,0.7759]
[1748904502885,2.20248385,2577.2,2576.8,0.77578]
[1748904503090,43.356,2577.7,2577.2,1.93916]
[1748904503384,4.228,2577.9,2577.5,3.2078]
[1748904503590,4.228,2577.9,2577.4,1.93894]
[1748904503591,0.7755,2577.8,2577.6,2.25453]
[1748904504192,0.00582287,2578.0,2577.6,1.479]
[1748904504487,0.00582287,2578.0,2577.9,0.77545]
[1748904504695,0.78125287,2578.0,2577.8,0.77546]
[1748904504887,3.2078,2577.9,2577.8,2.25446]
[1748904505082,0.78125287,2578.0,2577.8,2.25446]
[1748904506189,0.77545,2577.9,2577.8,1.479]
[1748904506489,4.7371,2577.9,2577.5,1.4829]
[1748904506791,0.77553,2577.7,2577.6,0.77554]
[1748904507390,5.00353,2577.7,2577.6,0.77554]
[1748904508487,4.227,2577.7,2577.6,0.77554]
[1748904508888,5.00251,2577.7,2577.6,0.77554]